fUSD/lending_fUSD_20241002
["ID","MTS","AMOUNT","RATE_DAILY","PERIOD"]
[339674040,1727831432569,-2657.38025101,0.000179,2]
[339674041,1727831432579,-150.99,0.000179,2]
[339674042,1727831432589,-3764.54,0.000179,2]
[339674043,1727831432598,-1130.22520425,0.000179,2]
[339674044,1727831432610,-57.08479575,0.000179,2]
[339674045,1727831432619,-499.99,0.000179,2]
[339674046,1727831432629,-450.0,0.00019,2]
[339674047,1727831432639,-250.0,0.00019,2]
[339674048,1727831432649,-250.0,0.0002,2]
[339674049,1727831432660,-5641.67483757,0.000203,2]
[339674050,1727831432671,-420.98804803,0.000203,2]
[339674051,1727831432682,-262.70659263,0.000203,2]
[339674057,1727831438272,-65383.074,0.000203,2]
[339674058,1727831438284,-2610.32101696,0.000203,2]
[339674059,1727831438297,-8669.99877385,0.000203,2]
[339674060,1727831438311,-585.8300735,0.000203,2]
[339674061,1727831440205,-6636.84965746,0.000203,2]
[339674062,1727831440215,-7588.0,0.000204,3]
[339674063,1727831440225,-500.0,0.00021,2]
[339674064,1727831440235,-8598.53323562,0.00021434,2]
[339674065,1727831440245,-193.06,0.00021798,2]
[339674066,1727831440254,-2000.0,0.00021917,2]
[339674067,1727831440264,-188.55,0.000229,14]
[339674068,1727831440273,-1000.0,0.00022999,2]
[339674069,1727831440283,-550.0,0.00023,2]
[339674070,1727831440292,-1267.59197852,0.00023287,2]
[339674071,1727831440302,-585.305,0.00023308,3]
[339674072,1727831440312,-164.214,0.00023308,3]
[339674073,1727831440321,-1000.0,0.0002345,2]
[339674074,1727831440331,-906.62,0.0002345,2]
[339674075,1727831440341,-200.0,0.00023535,2]
[339674076,1727831440350,-786.19608538,0.00023665,2]
[339674077,1727831440360,-206.59,0.00023665,3]
[339674078,1727831440369,-23900.0,0.00023675,2]
[339674079,1727831440379,-784.606,0.00023765,2]
[339674080,1727831440388,-155.67,0.00023897,2]
[339674081,1727831440398,-9939.61,0.00023948,2]
[339674082,1727831440407,-193.06,0.00024062,2]
[339674083,1727831440420,-250.0,0.00024105,2]
[339674084,1727831440429,-356.89,0.00024194,2]
[339674085,1727831440439,-150.01,0.00024535,2]
[339674086,1727831440449,-250.0,0.00024615,2]
[339674087,1727831440458,-154.24,0.00024623,2]
[339674088,1727831440468,-733.22,0.0002468,2]
[339674089,1727831440477,-250.0,0.00024703,2]
[339674090,1727831440486,-155.3,0.00024918,2]
[339674091,1727831440496,-600.0,0.00025,2]
[339674092,1727831440505,-300.0,0.00025242,2]
[339674094,1727831440516,-161.13,0.00025943,2]
[339674096,1727831440525,-193.06,0.00026326,2]
[339674098,1727831440535,-300.0,0.00026612,2]
[339674099,1727831440544,-1000.0,0.00027238,2]
[339674101,1727831440554,-155.67,0.00027879,120]
[339674103,1727831440563,-4000.0,0.00027891,2]
[339674105,1727831440573,-170.55,0.00027976,2]
[339674107,1727831440582,-900.0,0.00028,80]
[339674108,1727831440592,-1000.0,0.00028077,2]
[339674111,1727831440601,-214.5121,0.00028103,2]
[339674113,1727831440612,-854.917,0.00028103,2]
[339674115,1727831440622,-193.06,0.0002859,2]
[339674117,1727831440631,-154.24,0.00028789,2]
[339674119,1727831440642,-300.0,0.00029,30]
[339674121,1727831440651,-166.35,0.00029204,2]
[339674123,1727831440662,-1554.65,0.00029248,2]
[339674125,1727831440671,-754.17,0.00029285,2]
[339674127,1727831440681,-754.17,0.00029285,2]
[339674129,1727831440691,-754.17,0.00029285,2]
[339674131,1727831440700,-754.17,0.00029285,2]
[339674133,1727831440710,-261.3305,0.00029862,2]
[339674135,1727831440719,-1282.6985,0.00029862,2]
[339674137,1727831440728,-11105.04,0.00029962,10]
[339674139,1727831440737,-341.18,0.0002997,2]
[339674141,1727831440747,-358.38,0.0002997,2]
[339674143,1727831440756,-150.0,0.0002997,2]
[339674144,1727831440765,-358.38,0.0002997,2]
[339674146,1727831440775,-533.72,0.0002997,2]
[339674148,1727831440784,-358.38,0.0002997,2]
[339674150,1727831440794,-151.41,0.0002997,2]
[339674152,1727831440803,-649.25,0.0002997,2]
[339674154,1727831440813,-151.55,0.0002997,2]
[339674156,1727831440822,-3528.46,0.00029972,120]
[339674158,1727831440831,-250.0,0.0003,30]
[339674159,1727831440841,-155.0,0.0003,30]
[339674160,1727831440850,-200.0,0.0003,120]
[339674161,1727831440859,-350.0,0.0003,15]
[339674162,1727831440869,-350.0,0.0003,7]
[339674163,1727831440879,-754.17,0.00030244,2]
[339674164,1727831440889,-325.68,0.00030244,2]
[339674165,1727831440898,-500.0,0.00030341,120]
[339674166,1727831440909,-3528.46,0.00030383,120]
[339674167,1727831440919,-1000.0,0.000304,2]
[339674168,1727831440929,-701.82386,0.000305,2]
[339674169,1727831440938,-4210.8200036,0.0003051,3]
[339674170,1727831440947,-175.16896053,0.0003051,2]
[339674171,1727831440956,-162.20205651,0.0003052,2]
[339674172,1727831440967,-422.30975046,0.00030598,2]
[339674173,1727831440982,-30134.3845241,0.000306,5]
[339674174,1727831440992,-151.61,0.000306,2]
[339674175,1727831441002,-422.00306701,0.00030609,2]
[339674176,1727831441012,-500.0,0.00030609,2]
[339674177,1727831441024,-500.0,0.00030609,2]
[339674178,1727831441035,-500.0,0.00030609,2]
[339674179,1727831441045,-500.0,0.00030609,2]
[339674180,1727831441057,-383.1589589,0.00030609,2]
[339674181,1727831441067,-152724.62404627,0.0003061,5]
[339674182,1727831441090,-2992.38539684,0.0003061,5]
[339674183,1727831441109,-574.0,0.0003061,5]
[339674184,1727831441120,-1305.1161,0.0003061,5]
[339674185,1727831441144,-1856.44440045,0.0003061,5]
[339674187,1727831443748,-7407.99999974,0.00023665,2]
[339674197,1727831446350,-658.07952203,0.00023665,2]
[339674198,1727831446361,-289.36230955,0.00023665,2]
[339674199,1727831446371,-53.41748648,0.0003061,5]
[339674200,1727831446468,-959.66047797,0.0003061,5]
[339674254,1727832413142,10046.67012435,0.000101,2]
[339674255,1727832509824,24604.64943124,0.00021,60]
[339674257,1727832631563,-152.43,0.0001087,2]
[339674259,1727832631573,-577.60886704,0.00010879,2]
[339674264,1727832631913,-422.39113296,0.00010879,2]
[339674265,1727832631928,-318.14373784,0.00010879,2]
[339674266,1727832631939,-282.99912103,0.00010879,2]
[339674267,1727832631950,-300.0,0.00010879,2]
[339674268,1727832631959,-733.83766069,0.0001088,2]
[339674269,1727832632002,-590.16069176,0.0001088,2]
[339674271,1727832632015,-925.07724057,0.0001088,2]
[339674273,1727832632027,-1097.05332268,0.0001088,2]
[339674276,1727832632038,-912.38802639,0.0001088,2]
[339674280,1727832632049,-245693.42768873,0.0001088,2]
[339674283,1727832632061,-704.86,0.0001088,2]
[339674290,1727832632096,-530.14499983,0.0001088,2]
[339674292,1727832632108,-6168.6639082,0.0001088,2]
[339674293,1727832632119,-508.47198714,0.0001088,2]
[339674294,1727832632131,-341.42630098,0.0001088,2]
[339674295,1727832632142,-966.43463374,0.0001088,2]
[339674296,1727832632154,-618.03494291,0.0001088,2]
[339674297,1727832632166,-798.80351269,0.0001088,2]
[339674298,1727832632177,-1099.76345585,0.0001088,2]
[339674300,1727832637589,-4664.780461,0.00010815,2]
[339674301,1727832637599,-81713.3000762,0.0001088,2]
[339674305,1727832639848,-570.89934221,0.0001088,2]
[339674306,1727832639859,-847.30554912,0.0001088,2]
[339674307,1727832639874,-4957.06848104,0.0001088,2]
[339674342,1727832642686,-1575.75,0.0001088,2]
[339674343,1727832642697,-270.41060429,0.0001088,2]
[339674344,1727832642708,-715.30133553,0.0001088,2]
[339674345,1727832643018,-1644.15129456,0.0001088,2]
[339674349,1727832645786,-29239.265973,0.0001088,2]
[339674350,1727832645945,-613.94,0.0001088,2]
[339674367,1727833832129,-216.825,0.0001078,2]
[339674369,1727833832138,-217.16857324,0.0001078,2]
[339674371,1727833832150,-3.32410829,0.0001078,2]
[339674373,1727833832159,-3952.6315236,0.00010879,2]
[339674375,1727833832169,-10502.54411811,0.0001088,2]
[339674377,1727833832180,-295.5,0.0001088,2]
[339674379,1727833832191,-4781.02268136,0.0001088,2]
[339674428,1727833837644,-24789.11931,0.0001088,2]
[339674430,1727833837828,-2032.71087755,0.0001088,2]
[339674431,1727833837841,-646.8411,0.0001088,2]
[339674442,1727833846075,-32095.042313,0.0001088,2]
[339674443,1727833846087,-1280.81103182,0.0001088,2]
[339674444,1727833846099,-359.41731016,0.0001088,2]
[339674445,1727833846113,-752.3200685,0.0001088,2]
[339674446,1727834234587,-1014.59430247,0.00010779,2]
[339674447,1727834234609,-425.5728,0.0001078,2]
[339674448,1727834234630,-3359.83289753,0.0001078,2]
[339674450,1727834907753,161.83,9.589e-05,2]
[339674460,1727835032025,-334.26769976,0.00010679,2]
[339674461,1727835032034,-150.0,0.00010779,2]
[339674462,1727835032044,-300.0,0.00010779,2]
[339674463,1727835032053,-4016.27112962,0.0001078,2]
[339674464,1727835032251,-2534.578025,0.0001078,2]
[339674465,1727835032263,-8041.80744785,0.0001078,2]
[339674467,1727835032273,-11861.5249,0.0001078,2]
[339674471,1727835032282,-1001.53933998,0.00010879,2]
[339674473,1727835032292,-5864.94533781,0.00010879,2]
[339674476,1727835032301,-103368.91731023,0.0001088,2]
[339674480,1727835032313,-61635.69228176,0.0001088,2]
[339674483,1727835032323,-10470.06293035,0.00010899,2]
[339674486,1727835032333,-150.0,0.00010932,2]
[339674489,1727835032343,-177.82,0.00010959,2]
[339674492,1727835032352,-160.45,0.00010959,2]
[339674495,1727835032362,-157.69,0.00010959,2]
[339674498,1727835032371,-168.11,0.00010959,2]
[339674501,1727835032381,-165.43,0.00010959,2]
[339674504,1727835032390,-250.0,0.00011,2]
[339674507,1727835032400,-5150.3,0.00011,2]
[339674509,1727835032412,-317.26880337,0.00011176,2]
[339674511,1727835032422,-499.99,0.00011176,2]
[339674513,1727835032431,-299.99,0.0001125,2]
[339674515,1727835032440,-317.26880337,0.00011428,2]
[339674517,1727835032450,-235.53049299,0.000126,2]
[339674519,1727835032459,-150.0,0.000126,2]
[339674521,1727835032469,-314.958831,0.000128,2]
[339674523,1727835032478,-1005.894267,0.000128,2]
[339674525,1727835032489,-300.0,0.00013,2]
[339674527,1727835032499,-10470.06293027,0.00013666,2]
[339674529,1727835032509,-350.0,0.00015,2]
[339674531,1727835032518,-6109.33847843,0.000165,2]
[339674533,1727835032530,-1016.96828432,0.000165,2]
[339674535,1727835032541,-428.6169729,0.000165,2]
[339674549,1727835032664,-463.05,0.000165,2]
[339674551,1727835032676,-2452.08919462,0.000165,2]
[339674553,1727835032686,-400.0,0.00017,2]
[339674555,1727835032695,-291.08,0.00018,7]
[339674557,1727835032705,-330.71,0.00018077,2]
[339674559,1727835032715,-1852.42,0.00018989,2]
[339674561,1727835032724,-450.0,0.00019,2]
[339674563,1727835032734,-500.0,0.00019022,2]
[339674564,1727835032743,-250.0,0.00019154,2]
[339674565,1727835032754,-703.11,0.0001918,2]
[339674566,1727835032764,-200.0,0.00019238,2]
[339674567,1727835032773,-1238.03,0.00019258,2]
[339674568,1727835032783,-3496.29,0.00019259,2]
[339674569,1727835032792,-591.3,0.00019328,2]
[339674570,1727835032802,-2468.35744864,0.00019334,2]
[339674571,1727835032815,-377.86782155,0.00019334,2]
[339674572,1727835032827,-1891.96129736,0.00019334,2]
[339674574,1727835038301,-3961.19,0.00010625,2]
[339674575,1727835038311,-5731.87636272,0.00019334,2]
[339674576,1727835038320,-2068.7,0.00019421,2]
[339674577,1727835038330,-20778.23300917,0.0001946,2]
[339674578,1727835038341,-282.3913611,0.0001946,2]
[339674579,1727835039854,-2839.37562973,0.0001946,2]
[339674581,1727835039864,-412.52302027,0.00019522,2]
[339674585,1727835040067,-245.53697973,0.00019522,2]
[339674586,1727835040077,-2057.0,0.0001962,2]
[339674587,1727835040086,-250.0,0.00019687,2]
[339674588,1727835040095,-200.0,0.00019989,2]
[339674589,1727835040105,-156.13,0.00020071,2]
[339674590,1727835040115,-250.0,0.00020169,2]
[339674591,1727835040124,-6830.0,0.000202,3]
[339674592,1727835040134,-112.45886704,0.00020341,2]
[339674593,1727835040146,-218.25113296,0.00020341,2]
[339674594,1727835040155,-299.15,0.00020396,2]
[339674595,1727835040165,-520.91,0.00020411,2]
[339674596,1727835040174,-204.355823,0.00020417,2]
[339674597,1727835040291,-316.554177,0.00020417,2]
[339674599,1727835040300,-520.91,0.00020422,2]
[339674600,1727835040309,-520.91,0.00020427,2]
[339674602,1727835040319,-520.91,0.00020433,2]
[339674604,1727835040328,-520.91,0.00020438,2]
[339674606,1727835040337,-520.91,0.00020444,2]
[339674608,1727835040346,-520.91,0.00020449,2]
[339674610,1727835040355,-520.91,0.00020454,2]
[339674611,1727835040365,-520.91,0.0002046,2]
[339674613,1727835040374,-520.91,0.00020465,2]
[339674615,1727835040383,-520.91,0.0002047,2]
[339674617,1727835040391,-520.91,0.00020476,2]
[339674619,1727835040401,-303.46157014,0.00020481,2]
[339674674,1727835040973,-217.44842986,0.00020481,2]
[339674675,1727835040983,-108.29125053,0.00020487,2]
[339674698,1727835042982,-317.26880338,0.00011046,2]
[339674699,1727835042991,-317.26880339,0.00011489,2]
[339674701,1727835043000,-412.61874947,0.00020487,2]
[339674702,1727835043011,-520.91,0.00020492,2]
[339674703,1727835043020,-520.91,0.00020497,2]
[339674704,1727835043029,-520.91,0.00020503,2]
[339674705,1727835043039,-243.9919469,0.00020508,2]
[339674706,1727835043185,-276.9180531,0.00020508,2]
[339674707,1727835043194,-520.91,0.00020513,2]
[339674708,1727835043204,-169.16,0.00020562,2]
[339674709,1727835043213,-300.0,0.00020645,2]
[339674710,1727835043222,-1365.0,0.000207,3]
[339674711,1727835043231,-1000.0,0.00020791,2]
[339674712,1727835043241,-200.0,0.00021,2]
[339674713,1727835043250,-500.0,0.00021,2]
[339674714,1727835043261,-200.0,0.0002121,2]
[339674715,1727835043278,-1639.86415547,0.00021348,2]
[339674726,1727835043288,-180.0,0.00021386,2]
[339674727,1727835043606,-200.0,0.00021422,2]
[339674728,1727835043616,-171.32,0.00021446,2]
[339674729,1727835043626,-1295.54,0.00021918,2]
[339674730,1727835043636,-300.0,0.00022015,2]
[339674731,1727835043645,-179.26,0.00022029,2]
[339674732,1727835043655,-161.13,0.0002213,2]
[339674733,1727835043664,-1335.61547603,0.00022168,2]
[339674734,1727835043676,-1950.0,0.00022168,2]
[339674735,1727835043687,-1186.65288884,0.00022168,2]
[339674736,1727835043699,-1602.74999996,0.00022168,2]
[339674737,1727835043732,-798.74782239,0.00022168,2]
[339674749,1727835045967,-3596.29674305,0.00022168,2]
[339674750,1727835045978,-170.55,0.00022272,2]
[339674751,1727835045989,-1000.0,0.00022466,2]
[339674752,1727835045999,-1000.0,0.00022506,2]
[339674753,1727835046008,-566.56778857,0.00022506,2]
[339674754,1727835046227,-433.43221143,0.00022506,2]
[339674755,1727835046238,-1000.0,0.00022506,2]
[339674756,1727835046248,-1000.0,0.00022506,2]
[339674757,1727835046257,-1000.0,0.00022506,2]
[339674758,1727835046274,-1000.0,0.00022506,2]
[339674759,1727835046283,-1000.0,0.00022506,2]
[339674760,1727835046292,-1000.0,0.00022506,2]
[339674761,1727835046302,-1000.0,0.00022506,2]
[339674762,1727835046311,-1000.0,0.00022506,2]
[339674763,1727835046320,-1000.0,0.00022506,2]
[339674764,1727835046329,-1000.0,0.00022506,2]
[339674765,1727835046339,-1000.0,0.00022506,2]
[339674766,1727835046348,-1000.0,0.00022506,2]
[339674767,1727835046358,-1000.0,0.00022506,2]
[339674768,1727835046367,-1000.0,0.00022506,2]
[339674769,1727835046377,-1000.0,0.00022506,2]
[339674770,1727835046386,-1000.0,0.00022506,2]
[339674771,1727835046395,-1000.0,0.00022506,2]
[339674772,1727835046405,-1000.0,0.00022506,2]
[339674773,1727835046419,-1010.0,0.00022506,2]
[339674774,1727835046429,-1000.0,0.00022506,2]
[339674775,1727835046440,-1000.0,0.00022506,2]
[339674776,1727835046451,-1000.0,0.00022506,2]
[339674777,1727835046460,-1000.0,0.00022506,2]
[339674778,1727835046471,-151.0,0.00022506,7]
[339674780,1727835046481,-404.780344,0.00022506,7]
[339674782,1727835046493,-404.780344,0.00022506,7]
[339674784,1727835046505,-151.0,0.00022506,7]
[339674785,1727835046518,-330.71,0.00022605,2]
[339674786,1727835046527,-154.24,0.00022667,2]
[339674787,1727835046536,-575.158,0.0002331,3]
[339674788,1727835046546,-166.7,0.0002331,3]
[339674789,1727835046555,-205.518751,0.0002331,7]
[339674790,1727835046563,-205.518751,0.0002331,7]
[339674791,1727835046573,-243.48975,0.0002331,7]
[339674792,1727835046583,-243.48975,0.0002331,7]
[339674793,1727835046593,-220.912005,0.0002331,7]
[339674794,1727835046603,-220.912005,0.0002331,7]
[339674795,1727835046613,-151.0,0.0002339,7]
[339674796,1727835046624,-151.0,0.0002339,7]
[339674797,1727835046634,-151.0,0.0002339,7]
[339674798,1727835046645,-151.0,0.0002339,7]
[339674799,1727835046654,-151.0,0.0002339,7]
[339674800,1727835046663,-151.0,0.0002339,7]
[339674801,1727835046672,-21.83701645,0.0002339,2]
[339674802,1727835046684,-978.16298355,0.0002339,2]
[339674803,1727835046694,-251.83611645,0.00023534,2]
[339674804,1727835046707,-374.62088355,0.00023534,2]
[339674805,1727835046718,-514.368,0.00023534,2]
[339674806,1727835046730,-2402.42015807,0.000238,7]
[339674807,1727835046740,-672.44385855,0.00023999,90]
[339674808,1727835046752,-600.00000006,0.00024,40]
[339674809,1727835046763,-171.32,0.00024127,2]
[339674810,1727835046781,-151.0,0.0002485,7]
[339674811,1727835046791,-330.71,0.00024869,2]
[339674812,1727835046800,-1083.56709977,0.00025002,2]
[339674813,1727835083765,2952.9,0.00022,120]
[339674814,1727835087870,-536.9648,0.0001078,2]
[339674816,1727835186930,5010.95,0.00012,2]
[339674817,1727835211105,221.97,0.000126,2]
[339674818,1727835266445,171.25,0.00010959,2]
[339674819,1727835301764,250.0,0.00022,120]
[339674820,1727835355951,250.77,0.00013,2]
[339674838,1727835869194,164.02,0.00010959,2]
[339674839,1727835908806,8644.0752,0.00011,2]
[339674841,1727836065525,160.42,9.589e-05,2]
[339674865,1727836232208,-300.0,0.00010899,2]
[339674866,1727836232217,-1255.12842671,0.000109,2]
[339674867,1727836232227,-1255.12842672,0.000109,2]
[339674868,1727836232236,-6834.38940519,0.000109,2]
[339674869,1727836232245,-271.22,0.00010959,2]
[339674870,1727836232255,-226.01,0.00010959,2]
[339674871,1727836232264,-188.34,0.00010959,2]
[339674872,1727836232273,-156.95,0.00010959,2]
[339674873,1727836232282,-784.8,0.00010959,2]
[339674874,1727836232291,-1118.06527095,0.00010959,2]
[339674875,1727836232301,-165547.47779076,0.00011,2]
[339674876,1727836232312,-12738.92031615,0.00011,2]
[339674877,1727836232323,-4693.3908,0.00011,2]
[339674878,1727836232335,-979.24476573,0.00011,2]
[339674879,1727836232346,-1198.55399975,0.00011,2]
[339674880,1727836232357,-2110.18680958,0.00011,2]
[339674887,1727836238105,-11792.07249397,0.00011,2]
[339674888,1727836238233,-307.25000024,0.00011,2]
[339674889,1727836238370,-250.0,0.00011,2]
[339674892,1727836238382,-1185.34288774,0.00011,2]
[339674915,1727836240040,-49748.60010723,0.00011,2]
[339674917,1727836240175,-580.82843606,0.00011,2]
[339674918,1727836240308,-22733.10265911,0.00011,2]
[339674919,1727836240320,-1247.57500007,0.00011,2]
[339674920,1727836240331,-453.88349997,0.00011,2]
[339675021,1727836243186,-3141.80282482,0.00011,2]
[339675023,1727836243198,-1621.5,0.00011,2]
[339675024,1727836243210,-6342.88116998,0.00011,2]
[339675025,1727836243221,-754.32870113,0.00011,2]
[339675026,1727836243230,-250.0,0.00011,2]
[339675027,1727836243240,-300.0,0.00013,2]
[339675028,1727836243249,-6834.38940513,0.00013696,2]
[339675029,1727836243259,-350.0,0.00015,2]
[339675030,1727836243269,-6834.38940513,0.00016492,2]
[339675031,1727836243278,-400.0,0.00017,2]
[339675032,1727836243287,-450.0,0.00019,2]
[339675033,1727836243297,-6834.38940513,0.00019288,2]
[339675034,1727836243306,-1297.0,0.000197,3]
[339675035,1727836243315,-181.21477482,0.00021248,2]
[339675036,1727836243325,-151.07,0.00021348,2]
[339675037,1727836243335,-172.34,0.00021752,2]
[339675038,1727836243344,-499.99,0.00021752,2]
[339675039,1727836243354,-3485.10217227,0.00021933,2]
[339675040,1727836243364,-6834.38940513,0.00022084,2]
[339675041,1727836243374,-1086.178,0.00023034,2]
[339675042,1727836243383,-513.387,0.0002331,3]
[339675043,1727836243393,-167.982,0.0002331,3]
[339675044,1727836243402,-1000.0,0.00023964,2]
[339675045,1727836243412,-171.32,0.00024212,2]
[339675046,1727836243422,-422.34458308,0.0002477,2]
[339675047,1727836243431,-6834.38940513,0.0002488,2]
[339675048,1727836243440,-3170.19419602,0.000249,2]
[339675165,1727836246368,-7125.0,0.000249,2]
[339675166,1727836246380,-3264.95215444,0.000249,2]
[339675167,1727836705996,160.42,9.589e-05,2]
[339675168,1727836812333,1295.90801317,0.00022,120]
[339675169,1727837274949,160.42,9.589e-05,2]
[339675170,1727837396629,275.0,9.589e-05,2]
[339675171,1727837409397,500.0,9.589e-05,2]
[339675172,1727837409488,500.0,9.589e-05,2]
[339675180,1727837432514,-913.4699,0.000109,2]
[339675181,1727837432524,-157.97,0.00010959,2]
[339675182,1727837432535,-168.11,0.00010959,2]
[339675183,1727837432544,-300.0,0.00019399,2]
[339675184,1727837432553,-4280.07854316,0.000194,3]
[339675185,1727837432565,-1866.92145684,0.000194,3]
[339675186,1727837432575,-1920.50799983,0.00019576,2]
[339675187,1727837432584,-172.34,0.00019576,2]
[339675188,1727837432594,-3367.91670083,0.0001999,2]
[339675189,1727837432606,-485.99131108,0.0001999,2]
[339675190,1727837432617,-587.70900249,0.0001999,2]
[339675191,1727837432628,-326.07899347,0.0001999,2]
[339675192,1727837432639,-1856.9894157,0.0001999,2]
[339675193,1727837432651,-396.48017172,0.0001999,2]
[339675194,1727837432661,-280.56667432,0.0001999,2]
[339675196,1727837432742,-1469.77412197,0.0001999,2]
[339675224,1727837438562,-24939.9817227,0.0001999,2]
[339675225,1727837438574,-3238.1349,0.0001999,2]
[339675226,1727837438585,-564.64324685,0.0001999,2]
[339675227,1727837440240,-32061.88794618,0.0001999,2]
[339675230,1727837440464,-34842.94286806,0.0001999,2]
[339675231,1727837440476,-1293.09,0.0001999,2]
[339675232,1727837440488,-3241.38815,0.0001999,2]
[339675244,1727837441435,-2377.62261252,0.0001999,2]
[339675245,1727837441496,-735.97582814,0.0001999,2]
[339675251,1727837443542,-9718.74312821,0.0001999,2]
[339675252,1727837443785,-6495.69866769,0.0001999,2]
[339675254,1727837443798,-70459.71883478,0.0001999,2]
[339675255,1727837443810,-293.44999981,0.0001999,2]
[339675256,1727837443822,-30904.98821698,0.0001999,2]
[339675260,1727837446310,-1552.725,0.0001999,2]
[339675261,1727837446504,-2905.771836,0.0001999,2]
[339675262,1727837446515,-3156.35045445,0.0001999,2]
[339675263,1727837446527,-7368.6299918,0.0001999,2]
[339675264,1727837446538,-1221.7588,0.0001999,2]
[339675265,1727837840622,222.0,0.00022,120]
[339675266,1727837851708,155.0,0.00021,60]
[339675267,1727837865421,150.0,0.00015,30]
[339675270,1727838576305,160.42,9.589e-05,2]
[339675273,1727838632454,-158.33733213,0.00010859,2]
[339675275,1727838632464,-150.16,0.00010959,2]
[339675277,1727838632473,-171.25,0.00010959,2]
[339675279,1727838632482,-250.0,0.00011,2]
[339675280,1727838632491,-300.0,0.00013,2]
[339675282,1727838632500,-350.0,0.00015,2]
[339675283,1727838632510,-750.197829,0.00016814,2]
[339675284,1727838632519,-400.0,0.00017,2]
[339675285,1727838632528,-277.18819779,0.0001726,2]
[339675286,1727838632537,-300.0,0.00018155,2]
[339675287,1727838632547,-174.15,0.00018156,2]
[339675288,1727838632556,-999.99,0.00018156,2]
[339675289,1727838632566,-499.99,0.00018156,2]
[339675290,1727838632575,-369.80669323,0.00018824,2]
[339675291,1727838632585,-150.99,0.00018848,2]
[339675292,1727838632594,-3242.47,0.00018848,2]
[339675293,1727838632604,-369.80669323,0.00018949,2]
[339675294,1727838632615,-369.80669323,0.00019423,2]
[339675295,1727838632626,-655.0,0.00019452,2]
[339675296,1727838632636,-455.0,0.00019452,2]
[339675297,1727838632645,-4212.9226,0.00019625,2]
[339675298,1727838632654,-369.80669324,0.00019643,2]
[339675299,1727838632663,-302.0,0.00019725,2]
[339675300,1727838632673,-555.0,0.00019726,2]
[339675301,1727838632682,-420.0,0.00019806,2]
[339675302,1727838632691,-654.19996878,0.0001999,2]
[339675303,1727838632702,-3327.66179533,0.0001999,2]
[339675304,1727838632820,-13791.01,0.0001999,2]
[339675305,1727838632831,-17773.17030316,0.0001999,2]
[339675306,1727838632844,-5388.36513215,0.0001999,2]
[339675307,1727838632856,-581.26943988,0.0001999,2]
[339675317,1727838638677,-1070.1255496,0.0001999,2]
[339675318,1727838638743,-27422.6983379,0.0001999,2]
[339675340,1727838640598,-613.95813549,0.0001999,2]
[339675341,1727838640610,-1452.25846956,0.0001999,2]
[339675342,1727838640622,-627.53567323,0.0001999,2]
[339675343,1727838640633,-1816.06705901,0.0001999,2]
[339675344,1727838640644,-79415.72246515,0.0001999,2]
[339675345,1727838640824,-13347.15244246,0.0001999,2]
[339675358,1727838643742,-498.44728721,0.0001999,2]
[339675359,1727838643753,-301.25385499,0.0001999,2]
[339675360,1727838643764,-2151.55353911,0.0001999,2]
[339675361,1727838643775,-4397.15146631,0.0001999,2]
[339675362,1727838643944,-2494.85238499,0.0001999,2]
[339675380,1727838646893,-6222.99803238,0.0001999,2]
[339675381,1727838646905,-281.132003,0.0001999,2]
[339675385,1727839160454,160.42,9.589e-05,2]
[339675386,1727839436643,601.31,0.00021528,120]
[339675415,1727839831674,-164.46,0.00010959,2]
[339675416,1727839831684,-157.97,0.00010959,2]